fUST/lending_fUST_20250201
["ID","MTS","AMOUNT","RATE_DAILY","PERIOD"]
[351146358,1738352832272,-500.0,0.00017404,2]
[351146359,1738352832294,-500.0,0.00017404,2]
[351146360,1738352832315,-177.24,0.00017404,2]
[351146361,1738352832336,-500.0,0.00017405,2]
[351146362,1738352832361,-248.95,0.00017539,2]
[351146363,1738352832382,-461.55,0.0001754,2]
[351146364,1738352832404,-500.0,0.0001754,2]
[351146365,1738352832425,-500.0,0.0001754,2]
[351146366,1738352832446,-500.0,0.0001754,2]
[351146367,1738352832469,-500.0,0.0001754,2]
[351146368,1738352832490,-500.0,0.0001754,2]
[351146369,1738352832513,-778.55,0.00017541,2]
[351146370,1738352832534,-500.0,0.00017541,2]
[351146371,1738352832555,-224.1,0.00017541,2]
[351146372,1738352832578,-500.0,0.00017541,2]
[351146373,1738352832602,-177.8789116,0.00017542,2]
[351146374,1738352832625,-500.0,0.00017677,2]
[351146375,1738352832647,-302.52,0.00017677,2]
[351146376,1738352832669,-500.0,0.00017677,2]
[351146377,1738352832690,-308.91,0.00017677,2]
[351146378,1738352832714,-500.0,0.00017677,2]
[351146379,1738352832738,-778.55,0.00017678,2]
[351146380,1738352832760,-4.93975655,0.00017678,2]
[351146421,1738353032764,-540.19,0.00016993,2]
[351146422,1738353032774,-500.0,0.00016993,2]
[351146423,1738353032784,-500.0,0.00016993,2]
[351146425,1738353032796,-500.0,0.00016993,2]
[351146426,1738353032805,-500.0,0.00016993,2]
[351146428,1738353032815,-223.17000008,0.00016993,2]
[351146430,1738353032826,-276.82999992,0.00016993,2]
[351146432,1738353032836,-14560.1292663,0.00017,2]
[351146434,1738353032845,-500.0,0.00017128,2]
[351146436,1738353032855,-500.0,0.00017128,2]
[351146438,1738353032865,-500.0,0.00017128,2]
[351146440,1738353032875,-500.0,0.00017128,2]
[351146441,1738353032884,-506.86884258,0.00017128,2]
[351146443,1738353032894,-500.0,0.00017128,2]
[351146445,1738353032903,-321.53707492,0.00017128,2]
[351146447,1738353032915,-178.46292508,0.00017128,2]
[351146449,1738353032924,-131.25106342,0.00017128,2]
[351146450,1738353032936,-373.37244393,0.00017128,2]
[351146451,1738353032945,-66.19255607,0.00017129,2]
[351146453,1738353032957,-433.80744393,0.00017129,2]
[351146455,1738353032966,-500.0,0.00017129,2]
[351146458,1738353032976,-30.71094601,0.00017129,2]
[351146484,1738353038568,-500.0,0.00017128,2]
[351146485,1738353038578,-469.28905399,0.00017129,2]
[351146486,1738353038587,-500.0,0.00017129,2]
[351146487,1738353038597,-500.0,0.00017129,2]
[351146488,1738353038607,-500.0,0.0001713,2]
[351146489,1738353038616,-500.0,0.0001713,2]
[351146490,1738353038626,-500.0,0.0001713,2]
[351146491,1738353038635,-500.0,0.0001713,2]
[351146492,1738353038644,-500.0,0.00017265,2]
[351146493,1738353038654,-500.0,0.00017265,2]
[351146494,1738353038663,-500.0,0.00017265,2]
[351146495,1738353038673,-500.0,0.00017265,2]
[351146496,1738353038683,-500.0,0.00017266,2]
[351146497,1738353038692,-256.67,0.00017266,2]
[351146498,1738353038701,-500.0,0.00017266,2]
[351146499,1738353038711,-500.0,0.00017266,2]
[351146500,1738353038721,-500.0,0.00017266,2]
[351146501,1738353038731,-500.0,0.00017267,2]
[351146502,1738353038740,-500.0,0.00017267,2]
[351146503,1738353038750,-367.46,0.00017267,2]
[351146504,1738353038759,-500.0,0.00017402,2]
[351146505,1738353038768,-497.58,0.00017403,2]
[351146506,1738353038777,-500.0,0.00017403,2]
[351146507,1738353038787,-500.0,0.00017403,2]
[351146508,1738353038800,-500.0,0.00017403,2]
[351146509,1738353038810,-500.0,0.00017404,2]
[351146510,1738353038819,-500.0,0.00017404,2]
[351146511,1738353038828,-201.35920714,0.00017441,2]
[351146512,1738353038838,-500.0,0.0001754,2]
[351146513,1738353038847,-500.0,0.0001754,2]
[351146514,1738353038856,-500.0,0.0001754,2]
[351146515,1738353038866,-500.0,0.00017541,2]
[351146516,1738353038875,-500.0,0.00017541,2]
[351146517,1738353038884,-500.0,0.00017677,2]
[351146518,1738353038893,-289.48024345,0.00017677,2]
[351146519,1738353038903,-230.42,0.00017677,2]
[351146520,1738353038912,-500.0,0.00017678,2]
[351146521,1738353038921,-500.0,0.00017678,2]
[351146522,1738353038931,-500.0,0.00017814,2]
[351146523,1738353038940,-500.0,0.00017815,2]
[351146524,1738353038949,-500.0,0.00017815,2]
[351146525,1738353038959,-500.0,0.00017951,2]
[351146526,1738353039077,-196.08,0.00017952,2]
[351146527,1738353039121,-500.0,0.00017952,2]
[351146528,1738353039132,-500.0,0.00018088,2]
[351146529,1738353039141,-500.0,0.00018089,2]
[351146530,1738353039151,-201.35920714,0.00018121,2]
[351146531,1738353039160,-226.778783,0.00018161,2]
[351146532,1738353039169,-500.0,0.00018225,2]
[351146533,1738353039178,-500.0,0.00018226,2]
[351146534,1738353039187,-500.0,0.00018301,2]
[351146535,1738353039196,-251.147,0.00018302,2]
[351146536,1738353039206,-500.0,0.00018362,2]
[351146537,1738353039215,-168.39860172,0.00018363,2]
[351146538,1738353039225,-500.0,0.00018499,2]
[351146539,1738353039234,-646.43,0.000185,2]
[351146540,1738353039243,-500.0,0.00018548,2]
[351146541,1738353039253,-155.51,0.000186,2]
[351146542,1738353039262,-500.0,0.00018636,2]
[351146543,1738353039271,-500.0,0.00018773,2]
[351146544,1738353039280,-201.35920714,0.00018801,2]
[351146545,1738353039289,-203.58985823,0.000189,2]
[351146546,1738353039302,-125.5139847,0.000189,2]
[351146547,1738353039318,-24.4860153,0.000189,2]
[351146548,1738353039327,-500.0,0.0001891,2]
[351146549,1738353039336,-583.91,0.00018911,2]
[351146550,1738353039345,-500.0,0.00018913,2]
[351146551,1738353039354,-564.26550344,0.00018913,2]
[351146552,1738353039364,-500.0,0.00018913,2]
[351146553,1738353039373,-447.27786756,0.00018913,2]
[351146554,1738353039384,-52.72213244,0.00018913,2]
[351146555,1738353039394,-391.46612239,0.00018913,2]
[351146556,1738353039403,-500.0,0.00018913,2]
[351146557,1738353039413,-500.0,0.00018913,2]
[351146558,1738353039422,-314.23106895,0.00018913,2]
[351146559,1738353039434,-185.76893105,0.00018913,2]
[351146560,1738353039443,-500.0,0.00018913,2]
[351146561,1738353039452,-21.82428771,0.00018913,2]
[351146562,1738353039463,-478.17571229,0.00018913,2]
[351146563,1738353039472,-500.0,0.00018913,2]
[351146564,1738353039481,-500.0,0.00018913,2]
[351146565,1738353039491,-222.23,0.00018913,2]
[351146566,1738353039500,-298.63251322,0.00018913,2]
[351146567,1738353039511,-201.36748678,0.00018913,2]
[351146568,1738353039520,-244.84084401,0.00018913,2]
[351146577,1738353042260,-255.15915599,0.00018913,2]
[351146578,1738353042269,-368.67574739,0.00018913,2]
[351146579,1738353042281,-131.22425261,0.00018913,2]
[351146580,1738353042291,-500.0,0.00018913,2]
[351146581,1738353042302,-500.0,0.00018913,2]
[351146582,1738353042312,-500.0,0.00018913,2]
[351146583,1738353042321,-227.10643955,0.00018913,2]
[351146584,1738353042332,-272.89356045,0.00018913,2]
[351146585,1738353042341,-500.0,0.00018913,2]
[351146586,1738353042350,-500.0,0.00018913,2]
[351146587,1738353042359,-500.0,0.00018913,2]
[351146588,1738353042368,-500.0,0.00018913,2]
[351146589,1738353042378,-500.0,0.00018913,2]
[351146590,1738353042387,-500.0,0.00018913,2]
[351146591,1738353042396,-500.0,0.00018913,2]
[351146592,1738353042404,-500.0,0.00018913,2]
[351146593,1738353042414,-500.0,0.00018913,2]
[351146594,1738353042423,-500.0,0.00018913,2]
[351146595,1738353042432,-500.0,0.00018913,2]
[351146596,1738353042442,-500.0,0.00018913,2]
[351146597,1738353042451,-500.0,0.00018913,2]
[351146598,1738353042460,-502.35809235,0.00018913,2]
[351146599,1738353042469,-500.0,0.00018913,2]
[351146600,1738353042478,-500.0,0.00018913,2]
[351146601,1738353042488,-500.0,0.00018913,2]
[351146602,1738353042497,-420.0,0.00019,8]
[351146603,1738353042507,-1000.0,0.00019,5]
[351146604,1738353042516,-1000.0,0.00019,19]
[351146605,1738353042525,-154.377,0.00019,2]
[351146606,1738353042534,-537.0,0.00019035,2]
[351146607,1738353042543,-986.753,0.00019035,2]
[351146608,1738353042555,-500.0,0.00019047,2]
[351146609,1738353042564,-583.91,0.00019048,2]
[351146610,1738353042573,-500.0,0.0001905,2]
[351146611,1738353042582,-500.0,0.0001905,2]
[351146612,1738353042591,-433.9579993,0.0001905,2]
[351146613,1738353042599,-500.0,0.0001905,2]
[351146614,1738353042608,-580.51,0.0001905,2]
[351146615,1738353042618,-163.19,0.0001905,2]
[351146616,1738353042627,-420.7490541,0.0001905,2]
[351146617,1738353042636,-537.6,0.0001905,2]
[351146618,1738353042646,-500.0,0.0001905,2]
[351146619,1738353042655,-500.0,0.0001905,2]
[351146620,1738353042665,-502.66136931,0.0001905,2]
[351146621,1738353042675,-500.0,0.00019184,2]
[351146622,1738353042684,-583.91,0.00019185,2]
[351146623,1738353042693,-226.2,0.00019187,2]
[351146624,1738353042702,-500.0,0.00019321,2]
[351146625,1738353042712,-583.91,0.00019322,2]
[351146626,1738353042721,-500.0,0.00019458,2]
[351146627,1738353042730,-583.91,0.00019459,2]
[351146628,1738353042739,-201.35920714,0.00019481,2]
[351146629,1738353042749,-500.0,0.00019595,2]
[351146630,1738353042758,-583.91,0.00019596,2]
[351146631,1738353042768,-505.40999999,0.00019732,2]
[351146632,1738353042777,-583.91,0.00019733,2]
[351146633,1738353042787,-600.0,0.00019776,2]
[351146634,1738353042797,-183.9010986,0.00019799,2]
[351146635,1738353042810,-583.91,0.0001987,2]
[351146636,1738353042819,-2481.54369264,0.000199,2]
[351146637,1738353042828,-151.37450619,0.000199,2]
[351146638,1738353042837,-500.0,0.00019973,2]
[351146639,1738353042846,-500.34425733,0.00019973,2]
[351146640,1738353042855,-431.9275468,0.00019999,2]
[351146641,1738353042864,-396.78203253,0.00019999,2]
[351146642,1738353042873,-184.29773378,0.00019999,2]
[351146643,1738353042883,-500.0,0.00019999,2]
[351146644,1738353042891,-319.56778895,0.00019999,2]
[351146645,1738353042901,-500.0,0.00019999,2]
[351146646,1738353042910,-500.0,0.00019999,2]
[351146647,1738353042919,-500.0,0.00019999,2]
[351146648,1738353042928,-500.0,0.00019999,2]
[351146649,1738353042938,-500.0,0.00019999,2]
[351146650,1738353042947,-500.0,0.00019999,2]
[351146651,1738353042956,-500.0,0.00019999,2]
[351146652,1738353042965,-500.0,0.00019999,2]
[351146653,1738353042975,-152.36687066,0.00019999,2]
[351146654,1738353042983,-35428.79492714,0.0002,5]
[351146656,1738353043657,-1018.51574143,0.0002,5]
[351146657,1738353043669,-1308.82834252,0.0002,5]
[351146658,1738353043711,-9580.59840914,0.0002,5]
[351146666,1738353048015,-366.515842,0.0002,5]
[351146667,1738353048026,-1173.09936724,0.0002,5]
[351146668,1738353048037,-6148.21277836,0.0002,15]
[351146669,1738353048050,-99890.71840849,0.0002,15]
[351146670,1738353048075,-60732.51548789,0.0002,15]
[351146671,1738353074108,214.152614,0.00013973,2]
[351146680,1738354149757,203.444983,0.00013973,2]
[351146681,1738354154219,-1669.3926039,0.00016127,2]
[351146682,1738354154239,-150.0,0.000164,2]
[351146683,1738354154259,-500.0,0.00016993,2]
[351146684,1738354154421,-500.0,0.00016993,2]
[351146685,1738354154442,-524.47,0.00017125,2]
[351146686,1738354154462,-300.0,0.00017125,2]
[351146687,1738354154482,-500.0,0.00017126,2]
[351146688,1738354154502,-500.0,0.00017126,2]
[351146689,1738354154522,-500.0,0.00017126,2]
[351146690,1738354154542,-500.0,0.00017126,2]
[351146691,1738354154561,-535.87397067,0.00017126,2]
[351146692,1738354154581,-500.0,0.00017126,2]
[351146693,1738354154600,-500.0,0.00017126,2]
[351146694,1738354154620,-500.0,0.00017126,2]
[351146695,1738354154639,-500.0,0.00017126,2]
[351146696,1738354154659,-500.0,0.00017126,2]
[351146697,1738354154678,-500.0,0.00017126,2]
[351146698,1738354154697,-500.0,0.00017126,2]
[351146699,1738354154716,-500.0,0.00017126,2]
[351146700,1738354154735,-500.0,0.00017126,2]
[351146701,1738354154755,-500.0,0.00017126,2]
[351146702,1738354154775,-500.0,0.00017126,2]
[351146703,1738354154795,-500.0,0.00017126,2]
[351146704,1738354154815,-500.0,0.00017126,2]
[351146705,1738354154835,-500.0,0.00017126,2]
[351146706,1738354154857,-500.0,0.00017126,2]
[351146707,1738354154877,-500.0,0.00017126,2]
[351146708,1738354154897,-500.0,0.00017126,2]
[351146709,1738354154919,-618.00241282,0.00017126,2]
[351146710,1738354164364,-161.08736572,0.00017026,2]
[351146711,1738354164386,-12.93639077,0.00017126,2]
[351146712,1738354164407,-505.78145775,0.00017126,2]
[351146713,1738354164432,-500.0,0.00017126,2]
[351146714,1738354164452,-500.0,0.00017126,2]
[351146715,1738354164474,-500.0,0.00017126,2]
[351146716,1738354164496,-500.0,0.00017126,2]
[351146717,1738354164516,-502.60071862,0.00017126,2]
[351146718,1738354164536,-502.45447302,0.00017126,2]
[351146719,1738354164556,-500.0,0.00017126,2]
[351146720,1738354164577,-392.04204981,0.00017126,2]
[351146767,1738354231954,-500.0,0.00017125,2]
[351146769,1738354231964,-500.0,0.00017125,2]
[351146771,1738354231974,-107.95795019,0.00017126,2]
[351146773,1738354231983,-500.0,0.00017126,2]
[351146775,1738354231993,-500.0,0.00017126,2]
[351146777,1738354232002,-500.0,0.00017126,2]
[351146779,1738354232012,-500.0,0.00017126,2]
[351146781,1738354232021,-500.0,0.00017126,2]
[351146783,1738354232030,-500.0,0.00017126,2]
[351146785,1738354232040,-500.0,0.00017126,2]
[351146787,1738354232049,-500.0,0.00017126,2]
[351146789,1738354232060,-500.0,0.00017126,2]
[351146791,1738354232069,-228.61949507,0.00017126,2]
[351146794,1738354232081,-500.0,0.00017126,2]
[351146796,1738354232094,-500.0,0.00017126,2]
[351146798,1738354232112,-500.0,0.00017126,2]
[351146800,1738354232121,-500.0,0.00017126,2]
[351146802,1738354232131,-500.0,0.00017126,2]
[351146804,1738354232142,-500.0,0.00017126,2]
[351146805,1738354232152,-500.0,0.00017126,2]
[351146807,1738354232162,-500.0,0.00017126,2]
[351146808,1738354232171,-500.0,0.00017126,2]
[351146810,1738354232181,-500.0,0.00017126,2]
[351146811,1738354232190,-500.0,0.00017126,2]
[351146813,1738354232199,-500.0,0.00017126,2]
[351146814,1738354232209,-500.0,0.00017126,2]
[351146816,1738354232218,-500.0,0.00017126,2]
[351146818,1738354232228,-500.0,0.00017126,2]
[351146820,1738354232237,-500.0,0.00017126,2]
[351146821,1738354232247,-504.89855023,0.00017126,2]
[351146823,1738354232257,-370.45845976,0.00017126,2]
[351146825,1738354232267,-500.0,0.00017126,2]
[351146827,1738354232277,-500.0,0.00017126,2]
[351146828,1738354232286,-500.0,0.00017126,2]
[351146829,1738354232296,-500.0,0.00017126,2]
[351146830,1738354232306,-500.0,0.00017126,2]
[351146831,1738354232316,-500.0,0.00017126,2]
[351146832,1738354232325,-500.0,0.00017126,2]
[351146833,1738354232334,-500.0,0.00017126,2]
[351146834,1738354232344,-500.0,0.00017126,2]
[351146835,1738354232353,-500.0,0.00017126,2]
[351146836,1738354232362,-500.0,0.00017126,2]
[351146837,1738354232371,-500.0,0.00017126,2]
[351146838,1738354232381,-500.0,0.00017126,2]
[351146839,1738354232391,-500.0,0.00017126,2]
[351146840,1738354232400,-500.0,0.00017126,2]
[351146841,1738354232410,-500.82992443,0.00017126,2]
[351146842,1738354232419,-500.0,0.00017126,2]
[351146843,1738354232428,-500.0,0.00017126,2]
[351146844,1738354232438,-500.0,0.00017126,2]
[351146845,1738354232450,-503.30041313,0.00017126,2]
[351146846,1738354232459,-500.0,0.00017126,2]
[351146847,1738354232468,-500.0,0.00017126,2]
[351146848,1738354232477,-500.0,0.00017126,2]
[351146849,1738354232486,-500.0,0.00017126,2]
[351146850,1738354232495,-500.0,0.00017126,2]
[351146851,1738354232504,-500.0,0.00017126,2]
[351146852,1738354232514,-500.0,0.00017126,2]
[351146853,1738354232523,-501.91014212,0.00017126,2]
[351146854,1738354232532,-500.0,0.00017126,2]
[351146855,1738354232541,-500.0,0.00017126,2]
[351146856,1738354232550,-500.0,0.00017126,2]
[351146857,1738354232559,-500.0,0.00017126,2]
[351146858,1738354232568,-500.0,0.00017126,2]
[351146859,1738354232577,-500.0,0.00017126,2]
[351146860,1738354232586,-500.0,0.00017126,2]
[351146861,1738354232595,-549.0,0.00017126,2]
[351146862,1738354232604,-500.0,0.00017126,2]
[351146863,1738354232614,-500.0,0.00017126,2]
[351146864,1738354232623,-500.0,0.00017126,2]
[351146865,1738354232633,-500.0,0.00017126,2]
[351146866,1738354232642,-500.0,0.00017126,2]
[351146867,1738354232651,-500.0,0.00017126,2]
[351146868,1738354232660,-500.0,0.00017126,2]
[351146869,1738354232669,-500.0,0.00017126,2]
[351146870,1738354232678,-500.0,0.00017126,2]
[351146871,1738354232687,-500.0,0.00017126,2]
[351146872,1738354232697,-500.0,0.00017126,2]
[351146873,1738354232708,-500.0,0.00017126,2]
[351146874,1738354232718,-411.87256272,0.00017126,2]
[351146875,1738354232726,-500.0,0.00017126,2]
[351146876,1738354232735,-521.19884162,0.00017126,2]
[351146877,1738354232746,-500.0,0.00017126,2]
[351146878,1738354232756,-500.0,0.00017126,2]
[351146879,1738354232766,-500.0,0.00017126,2]
[351146880,1738354232775,-500.0,0.00017126,2]
[351146881,1738354232786,-500.0,0.00017126,2]
[351146882,1738354232795,-500.0,0.00017126,2]
[351146883,1738354232806,-500.0,0.00017126,2]
[351146884,1738354232815,-519.34556747,0.00017126,2]
[351146885,1738354232824,-500.0,0.00017126,2]
[351146886,1738354232834,-511.62838714,0.00017126,2]
[351146887,1738354232843,-500.0,0.00017126,2]
[351146888,1738354232852,-572.43,0.00017126,2]
[351146889,1738354232864,-500.0,0.00017126,2]
[351146890,1738354232877,-696.22,0.00017126,2]
[351146891,1738354232890,-500.0,0.00017126,2]
[351146892,1738354232900,-500.0,0.00017126,2]
[351146893,1738354232909,-500.0,0.00017126,2]
[351146894,1738354232919,-500.0,0.00017126,2]
[351146895,1738354232928,-506.48538674,0.00017126,2]
[351146896,1738354232937,-500.0,0.00017126,2]
[351146897,1738354232946,-500.0,0.00017126,2]
[351146898,1738354232955,-500.0,0.00017126,2]
[351146899,1738354232964,-500.0,0.00017126,2]
[351146900,1738354232974,-500.0,0.00017126,2]
[351146901,1738354232983,-501.37285569,0.00017126,2]
[351146902,1738354232991,-715.4,0.00017126,2]
[351146903,1738354233000,-500.0,0.00017126,2]
[351146904,1738354233009,-500.0,0.00017126,2]
[351146905,1738354233018,-503.45019622,0.00017126,2]
[351146906,1738354233027,-500.0,0.00017126,2]
[351146907,1738354233037,-500.0,0.00017126,2]
[351146908,1738354233046,-500.0,0.00017126,2]
[351146909,1738354233056,-500.0,0.00017126,2]
[351146910,1738354233066,-500.0,0.00017126,2]
[351146911,1738354233075,-500.0,0.00017126,2]
[351146912,1738354233084,-500.0,0.00017126,2]
[351146913,1738354233093,-500.0,0.00017126,2]
[351146914,1738354233102,-500.0,0.00017126,2]
[351146915,1738354233112,-500.0,0.00017126,2]
[351146916,1738354233122,-500.0,0.00017126,2]
[351146917,1738354233131,-500.0,0.00017126,2]
[351146918,1738354233141,-500.0,0.00017126,2]
[351146919,1738354233150,-500.0,0.00017126,2]
[351146920,1738354233160,-500.0,0.00017126,2]
[351146921,1738354233169,-500.0,0.00017126,2]
[351146922,1738354233178,-500.0,0.00017126,2]
[351146923,1738354233188,-500.0,0.00017126,2]
[351146924,1738354233197,-500.0,0.00017126,2]
[351146925,1738354233206,-176.71,0.00017126,2]
[351146926,1738354233216,-500.0,0.00017126,2]
[351146927,1738354233225,-500.0,0.00017126,2]
[351146928,1738354233234,-500.0,0.00017126,2]
[351146929,1738354233244,-500.0,0.00017126,2]
[351146930,1738354233253,-500.0,0.00017127,2]
[351146931,1738354233263,-500.0,0.00017127,2]
[351146932,1738354233272,-500.0,0.00017127,2]
[351146933,1738354233281,-554.71977024,0.00017127,2]
[351146934,1738354233292,-500.0,0.00017127,2]
[351146935,1738354233303,-500.0,0.00017127,2]
[351146936,1738354233312,-500.0,0.00017127,2]
[351146937,1738354233322,-500.0,0.00017127,2]
[351146938,1738354233331,-500.0,0.00017127,2]
[351146939,1738354233342,-580.29,0.00017127,2]
[351146940,1738354233351,-500.0,0.00017127,2]
[351146941,1738354233361,-500.0,0.00017127,2]
[351146942,1738354233370,-500.0,0.00017127,2]
[351146943,1738354233380,-500.0,0.00017127,2]
[351146944,1738354233390,-696.22,0.00017127,2]
[351146945,1738354233400,-500.0,0.00017128,2]
[351146946,1738354233409,-500.0,0.00017128,2]
[351146947,1738354233419,-500.0,0.00017128,2]
[351146948,1738354233429,-500.0,0.00017128,2]
[351146949,1738354233438,-429.76227797,0.00017128,2]
[351146950,1738354233449,-500.0,0.00017128,2]
[351146951,1738354233459,-500.0,0.00017128,2]
[351146952,1738354233469,-500.0,0.00017128,2]
[351146953,1738354233478,-500.0,0.00017128,2]
[351146954,1738354233488,-500.0,0.00017128,2]
[351146955,1738354233497,-500.0,0.00017128,2]
[351146956,1738354233507,-500.0,0.00017128,2]
[351146957,1738354233516,-500.0,0.00017128,2]
[351146958,1738354233527,-358.01091777,0.00017128,2]
[351146959,1738354233537,-500.0,0.00017128,2]
[351146960,1738354233546,-500.0,0.00017128,2]
[351146961,1738354233556,-500.0,0.00017128,2]
[351146962,1738354233566,-500.0,0.00017128,2]
[351146963,1738354233575,-500.0,0.00017128,2]
[351146964,1738354233585,-500.0,0.00017128,2]
[351146965,1738354233595,-500.0,0.00017128,2]
[351146966,1738354233605,-500.0,0.00017128,2]
[351146967,1738354233615,-500.0,0.00017128,2]
[351146968,1738354233625,-500.0,0.00017128,2]
[351146969,1738354233635,-500.0,0.00017128,2]
[351146970,1738354233644,-500.0,0.00017128,2]
[351146971,1738354233653,-500.0,0.00017128,2]
[351146972,1738354233663,-500.0,0.00017128,2]
[351146973,1738354233672,-500.0,0.00017128,2]
[351146974,1738354233682,-500.0,0.00017128,2]
[351146975,1738354233692,-500.0,0.00017128,2]
[351146976,1738354233701,-500.0,0.00017128,2]
[351146977,1738354233711,-500.0,0.00017128,2]
[351146978,1738354233721,-500.0,0.00017128,2]
[351146979,1738354233730,-500.0,0.00017128,2]
[351146980,1738354233739,-500.0,0.00017128,2]
[351146981,1738354233748,-500.0,0.00017128,2]
[351146982,1738354233758,-696.22,0.00017128,2]
[351146983,1738354233767,-500.0,0.00017128,2]
[351146984,1738354233777,-500.0,0.00017128,2]
[351146985,1738354233786,-500.0,0.00017128,2]
[351146986,1738354233795,-500.0,0.00017128,2]
[351146987,1738354233805,-500.0,0.00017128,2]
[351146988,1738354233815,-500.0,0.0001713,2]
[351146989,1738354233824,-500.0,0.00017262,2]
[351146990,1738354233834,-500.0,0.00017262,2]
[351146991,1738354233844,-325.66,0.00017262,2]
[351146992,1738354233853,-500.0,0.00017263,2]
[351146993,1738354233864,-299.06352534,0.00017263,2]
[351146994,1738354233873,-500.0,0.00017263,2]
[351146995,1738354233883,-500.0,0.00017263,2]
[351146996,1738354233892,-500.0,0.00017263,2]
[351146997,1738354233902,-500.0,0.00017263,2]
[351146998,1738354233911,-500.0,0.00017263,2]
[351146999,1738354233921,-500.0,0.00017263,2]
[351147000,1738354233931,-572.68454985,0.00017263,2]
[351147001,1738354233941,-500.0,0.00017263,2]
[351147002,1738354233951,-500.0,0.00017263,2]
[351147003,1738354233961,-500.0,0.00017263,2]
[351147004,1738354233970,-500.0,0.00017263,2]
[351147005,1738354233979,-502.61301712,0.00017263,2]
[351147006,1738354233989,-599.74,0.00017263,2]
[351147007,1738354233999,-500.0,0.00017263,2]
[351147008,1738354234009,-500.0,0.00017263,2]
[351147009,1738354234126,-500.0,0.00017263,2]
[351147010,1738354234137,-629.68042673,0.00017263,2]
[351147011,1738354234147,-500.0,0.00017263,2]
[351147012,1738354234157,-500.0,0.00017263,2]
[351147013,1738354234167,-500.0,0.00017263,2]
[351147014,1738354234176,-500.0,0.00017263,2]
[351147015,1738354234186,-500.0,0.00017263,2]
[351147016,1738354234196,-564.26550344,0.00017263,2]
[351147017,1738354234206,-500.0,0.00017263,2]
[351147018,1738354234216,-500.0,0.00017263,2]
[351147019,1738354234225,-500.0,0.00017263,2]
[351147020,1738354234235,-500.0,0.00017263,2]
[351147021,1738354234245,-500.0,0.00017263,2]
[351147022,1738354234255,-500.0,0.00017263,2]
[351147023,1738354234264,-500.0,0.00017263,2]
[351147024,1738354234274,-500.0,0.00017263,2]
[351147025,1738354234283,-507.25544204,0.00017263,2]
[351147026,1738354234293,-349.48,0.00017263,2]
[351147027,1738354234303,-500.0,0.00017263,2]
[351147028,1738354234312,-613.49,0.00017263,2]
[351147029,1738354234322,-521.7,0.00017263,2]
[351147030,1738354234331,-500.0,0.00017263,2]
[351147031,1738354234341,-500.0,0.00017263,2]
[351147032,1738354234351,-447.27786756,0.00017263,2]
[351147033,1738354234361,-500.0,0.00017263,2]
[351147034,1738354234370,-500.0,0.00017263,2]
[351147035,1738354234380,-558.33,0.00017263,2]
[351147036,1738354234390,-500.0,0.00017263,2]